fUSD/lending_fUSD_20250716
["ID","MTS","AMOUNT","RATE_DAILY","PERIOD"]
[372507735,1752663214989,-950.28,0.00023972,2]
[372507736,1752663215000,-597.04,0.00023972,2]
[372507737,1752663215011,-692.22,0.00023972,2]
[372507738,1752663215020,-259.39399829,0.00023972,2]
[372507739,1752663215030,-460.0,0.00023972,2]
[372507740,1752663215040,-934.91,0.00023972,2]
[372507741,1752663215050,-1954.32,0.00023972,2]
[372507742,1752663215060,-1051.45,0.00023972,2]
[372507743,1752663215069,-460.0,0.00023972,2]
[372507744,1752663215079,-1320.19,0.00023972,2]
[372507745,1752663215089,-460.0,0.00023972,2]
[372507746,1752663215099,-460.0,0.00023972,2]
[372507747,1752663215109,-1367.21,0.00023972,2]
[372507748,1752663215118,-3449.55,0.00023972,2]
[372507749,1752663215128,-850.19,0.00023972,2]
[372507750,1752663215138,-3110.28,0.00023972,2]
[372507751,1752663215147,-802.2,0.00023972,2]
[372507752,1752663215157,-527.48,0.00023972,2]
[372507753,1752663215167,-460.0,0.00023972,2]
[372507754,1752663215176,-940.26,0.00023972,2]
[372507755,1752663215186,-2098.67,0.00023972,2]
[372507756,1752663215196,-752.81,0.00023972,2]
[372507757,1752663215206,-689.36,0.00023972,2]
[372507758,1752663215215,-2979.04,0.00023972,2]
[372507759,1752663215226,-945.82,0.00023972,2]
[372507760,1752663215240,-461.28,0.00023972,2]
[372507761,1752663215250,-1127.17,0.00023972,2]
[372507762,1752663215261,-486.62,0.00023972,2]
[372507763,1752663215276,-460.0,0.00023972,2]
[372507764,1752663215286,-3049.9,0.00023972,2]
[372507765,1752663215296,-1920.84,0.00023972,2]
[372507766,1752663215308,-460.0,0.00023972,2]
[372507767,1752663215319,-460.0,0.00023972,2]
[372507768,1752663215329,-1266.56,0.00023972,2]
[372507769,1752663215339,-1363.97,0.00023972,2]
[372507770,1752663215348,-547.91,0.00023972,2]
[372507771,1752663215358,-1080.52,0.00023972,2]
[372507772,1752663215367,-460.0,0.00023972,2]
[372507773,1752663215377,-1157.14,0.00023972,2]
[372507774,1752663215387,-963.24,0.00023972,2]
[372507775,1752663215396,-526.48,0.00023972,2]
[372507776,1752663215406,-1152.83,0.00023972,2]
[372507777,1752663215416,-2280.97,0.00023972,2]
[372507778,1752663215426,-2306.11,0.00023972,2]
[372507779,1752663215436,-1495.62,0.00023972,2]
[372507780,1752663215446,-658.25,0.00023972,2]
[372507781,1752663215456,-2249.33,0.00023972,2]
[372507782,1752663215466,-902.72,0.00023972,2]
[372507783,1752663215476,-498.87,0.00023972,2]
[372507784,1752663215486,-460.0,0.00023972,2]
[372507785,1752663215495,-1741.37,0.00023972,2]
[372507786,1752663215505,-515.22,0.00023972,2]
[372507787,1752663215514,-1256.01,0.00023972,2]
[372507788,1752663215524,-748.36,0.00023972,2]
[372507789,1752663215534,-730.45,0.00023972,2]
[372507790,1752663215544,-889.78,0.00023972,2]
[372507791,1752663215553,-1213.76,0.00023972,2]
[372507792,1752663215563,-460.0,0.00023972,2]
[372507793,1752663215572,-976.13,0.00023972,2]
[372507794,1752663215582,-595.0,0.00023972,2]
[372507795,1752663215593,-1393.74,0.00023972,2]
[372507796,1752663215602,-1803.46,0.00023972,2]
[372507797,1752663215613,-2622.24,0.00023972,2]
[372507798,1752663215623,-460.0,0.00023972,2]
[372507799,1752663215633,-476.01,0.00023972,2]
[372507800,1752663215642,-2059.43,0.00023972,2]
[372507801,1752663215653,-2566.84,0.00023972,2]
[372507802,1752663215662,-567.34,0.00023972,2]
[372507803,1752663215672,-2711.83,0.00023972,2]
[372507804,1752663215681,-460.0,0.00023972,2]
[372507805,1752663215692,-629.46,0.00023972,2]
[372507806,1752663215701,-1222.0,0.00023972,2]
[372507807,1752663215712,-1237.1,0.00023972,2]
[372507808,1752663215722,-2588.11,0.00023972,2]
[372507809,1752663215731,-460.0,0.00023972,2]
[372507810,1752663215741,-1423.44,0.00023972,2]
[372507811,1752663215751,-2529.28,0.00023972,2]
[372507812,1752663215760,-460.0,0.00023972,2]
[372507813,1752663215770,-499.91,0.00023972,2]
[372507814,1752663215780,-1539.06,0.00023972,2]
[372507815,1752663215790,-460.0,0.00023972,2]
[372507816,1752663215799,-1099.63,0.00023972,2]
[372507817,1752663215811,-1405.9,0.00023972,2]
[372507818,1752663215821,-466.780996,0.00023972,2]
[372507819,1752663215830,-3553.18,0.00023972,2]
[372507820,1752663215841,-851.53,0.00023972,2]
[372507821,1752663215851,-540.25,0.00023972,2]
[372507822,1752663215861,-1813.38,0.00023972,2]
[372507823,1752663215871,-460.0,0.00023972,2]
[372507824,1752663215881,-782.81,0.00023972,2]
[372507825,1752663215890,-3147.54,0.00023972,2]
[372507826,1752663215901,-1440.52,0.00023972,2]
[372507827,1752663215911,-859.58,0.00023972,2]
[372507828,1752663215921,-1141.87,0.00023972,2]
[372507829,1752663215931,-1810.64,0.00023972,2]
[372507830,1752663215941,-3032.38,0.00023972,2]
[372507831,1752663215951,-460.0,0.00023972,2]
[372507832,1752663215960,-853.73,0.00023972,2]
[372507833,1752663215970,-525.43,0.00023972,2]
[372507834,1752663215980,-1417.02,0.00023972,2]
[372507835,1752663215991,-2884.5,0.00023972,2]
[372507836,1752663216002,-153.228134,0.00023972,2]
[372507837,1752663216012,-496.87,0.00023972,2]
[372507838,1752663216022,-2023.67,0.00023972,2]
[372507839,1752663216032,-3089.316035,0.00023972,2]
[372507840,1752663216043,-2243.27,0.00023972,2]
[372507841,1752663216053,-460.0,0.00023972,2]
[372507842,1752663216063,-3447.716716,0.00023972,2]
[372507843,1752663216073,-1160.26,0.00023972,2]
[372507844,1752663216083,-1094.15,0.00023972,2]
[372507845,1752663216093,-645.68,0.00023972,2]
[372507846,1752663216103,-1128.01,0.00023972,2]
[372507847,1752663216113,-465.62,0.00023972,2]
[372507848,1752663216123,-730.18,0.00023972,2]
[372507849,1752663216132,-3424.477153,0.00023972,2]
[372507850,1752663216142,-642.34,0.00023972,2]
[372507851,1752663216151,-1314.79,0.00023972,2]
[372507852,1752663216161,-1198.89,0.00023972,2]
[372507853,1752663216171,-1203.47,0.00023972,2]
[372507854,1752663216180,-887.6,0.00023972,2]
[372507855,1752663216190,-1132.15,0.00023972,2]
[372507856,1752663216200,-903.29,0.00023972,2]
[372507857,1752663216210,-1011.16,0.00023972,2]
[372507858,1752663216219,-994.92,0.00023972,2]
[372507859,1752663216231,-2880.76,0.00023972,2]
[372507860,1752663216242,-1024.12,0.00023972,2]
[372507861,1752663216251,-684.79,0.00023972,2]
[372507862,1752663216261,-1863.81,0.00023972,2]
[372507863,1752663216271,-460.0,0.00023972,2]
[372507864,1752663216282,-1858.32,0.00023972,2]
[372507865,1752663216292,-3055.14,0.00023972,2]
[372507866,1752663216302,-570.24,0.00023972,2]
[372507867,1752663216314,-612.03,0.00023972,2]
[372507868,1752663216323,-3225.29,0.00023972,2]
[372507869,1752663216333,-799.53,0.00023972,2]
[372507870,1752663216343,-967.0,0.00023972,2]
[372507871,1752663216353,-1452.54,0.00023972,2]
[372507872,1752663216363,-460.0,0.00023972,2]
[372507873,1752663216382,-2151.45,0.00023972,2]
[372507874,1752663216394,-909.92,0.00023972,2]
[372507875,1752663216404,-708.79,0.00023972,2]
[372507876,1752663216414,-460.0,0.00023972,2]
[372507877,1752663216424,-18257.49,0.00023972,2]
[372507878,1752663216433,-574.66,0.00023972,2]
[372507879,1752663216443,-460.0,0.00023972,2]
[372507880,1752663216453,-1366.55,0.00023972,2]
[372507881,1752663216463,-2712.48,0.00023972,2]
[372507882,1752663216473,-1243.92,0.00023972,2]
[372507883,1752663216484,-4396.18,0.00023972,2]
[372507884,1752663216494,-530.09,0.00023972,2]
[372507885,1752663216504,-5268.98,0.00023972,2]
[372507886,1752663216513,-558.0,0.00023972,2]
[372507887,1752663216524,-1950.3,0.00023972,2]
[372507888,1752663216534,-661.22,0.00023972,2]
[372507889,1752663216543,-802.89,0.00023972,2]
[372507890,1752663216553,-1009.57,0.00023972,2]
[372507891,1752663216563,-548.97,0.00023972,2]
[372507892,1752663216572,-806.79,0.00023972,2]
[372507893,1752663216582,-1016.81,0.00023972,2]
[372507894,1752663216592,-716.51,0.00023972,2]
[372507895,1752663216602,-1807.77,0.00023972,2]
[372507896,1752663216611,-3401.52,0.00023972,2]
[372507897,1752663216621,-460.0,0.00023972,2]
[372507898,1752663216631,-1577.99,0.00023972,2]
[372507899,1752663216641,-460.0,0.00023972,2]
[372507900,1752663216650,-1090.35,0.00023972,2]
[372507901,1752663216661,-2180.23,0.00023972,2]
[372507902,1752663216670,-2435.35,0.00023972,2]
[372507903,1752663216680,-460.0,0.00023972,2]
[372507904,1752663216690,-9495.76,0.00023972,2]
[372507905,1752663216699,-993.34,0.00023972,2]
[372507906,1752663216708,-932.03,0.00023972,2]
[372507907,1752663216718,-2366.57,0.00023972,2]
[372507908,1752663216728,-635.82,0.00023972,2]
[372507909,1752663216737,-6460.58,0.00023972,2]
[372507910,1752663216747,-2004.78,0.00023972,2]
[372507911,1752663216757,-460.0,0.00023972,2]
[372507912,1752663216766,-1405.03,0.00023972,2]
[372507913,1752663216776,-689.97,0.00023972,2]
[372507914,1752663216786,-1384.4,0.00023972,2]
[372507915,1752663216795,-3219.3,0.00023972,2]
[372507916,1752663216805,-460.0,0.00023972,2]
[372507917,1752663216815,-460.0,0.00023972,2]
[372507918,1752663216825,-660.19,0.00023972,2]
[372507919,1752663216834,-4073.22,0.00023972,2]
[372507920,1752663216844,-829.45,0.00023972,2]
[372507921,1752663216853,-460.0,0.00023972,2]
[372507922,1752663216863,-1482.8,0.00023972,2]
[372507923,1752663216872,-460.0,0.00023972,2]
[372507924,1752663216882,-1224.36,0.00023972,2]
[372507925,1752663216892,-1186.85,0.00023972,2]
[372507926,1752663216902,-1846.22,0.00023972,2]
[372507927,1752663216912,-2508.45,0.00023972,2]
[372507928,1752663216921,-605.83,0.00023972,2]
[372507929,1752663216930,-1023.53,0.00023972,2]
[372507930,1752663216940,-571.95,0.00023972,2]
[372507931,1752663216950,-2046.51,0.00023972,2]
[372507932,1752663216960,-5496.82,0.00023972,2]
[372507933,1752663216970,-1729.36,0.00023972,2]
[372507934,1752663216980,-845.91,0.00023972,2]
[372507935,1752663216990,-351.25214088,0.00023972,2]
[372507936,1752663217000,-1153.38,0.00023972,2]
[372507937,1752663217010,-1471.4,0.00023972,2]
[372507938,1752663217019,-460.0,0.00023972,2]
[372507939,1752663217029,-25686.63,0.00023972,2]
[372507940,1752663217038,-2265.87,0.00023972,2]
[372507941,1752663217048,-1804.24,0.00023972,2]
[372507942,1752663217058,-801.55,0.00023972,2]
[372507943,1752663217068,-667.91,0.00023972,2]
[372507944,1752663217077,-460.0,0.00023972,2]
[372507945,1752663217087,-460.0,0.00023972,2]
[372507946,1752663217097,-460.0,0.00023972,2]
[372507947,1752663217107,-460.0,0.00023972,2]
[372507948,1752663217116,-720.01,0.00023972,2]
[372507949,1752663217126,-912.12,0.00023972,2]
[372507950,1752663217136,-1488.97,0.00023972,2]
[372507951,1752663217145,-2378.43,0.00023972,2]
[372507952,1752663217155,-693.6,0.00023972,2]
[372507953,1752663217165,-568.78,0.00023972,2]
[372507954,1752663217175,-2336.76,0.00023972,2]
[372507955,1752663217184,-1662.59,0.00023972,2]
[372507956,1752663217194,-834.17,0.00023972,2]
[372507957,1752663217204,-3608.17,0.00023972,2]
[372507958,1752663217214,-578.22,0.00023972,2]
[372507959,1752663217224,-465.11,0.00023972,2]
[372507960,1752663217237,-590.67,0.00023972,2]
[372507961,1752663217247,-1551.69,0.00023972,2]
[372507962,1752663217257,-722.56,0.00023972,2]
[372507963,1752663217266,-468.55,0.00023972,2]
[372507964,1752663217276,-4023.17,0.00023972,2]
[372507965,1752663217286,-1002.03,0.00023972,2]
[372507966,1752663217296,-517.03,0.00023972,2]
[372507967,1752663217307,-460.0,0.00023972,2]
[372507968,1752663217317,-421.04331603,0.00023972,2]
[372507969,1752663217326,-546.65,0.00023972,2]
[372507970,1752663217336,-4710.56,0.00023972,2]
[372507971,1752663217346,-3644.36,0.00023972,2]
[372507972,1752663217355,-1375.33,0.00023972,2]
[372507973,1752663217364,-550.49797752,0.00023972,2]
[372507974,1752663217374,-1086.94,0.00023972,2]
[372507975,1752663217383,-1882.13,0.00023972,2]
[372507976,1752663217393,-819.82,0.00023972,2]
[372507977,1752663217403,-533.59,0.00023972,2]
[372507978,1752663217413,-3437.5,0.00023972,2]
[372507979,1752663217422,-846.81,0.00023972,2]
[372507980,1752663217432,-10473.68,0.00023972,2]
[372507981,1752663217441,-956.97,0.00023972,2]
[372507982,1752663217451,-1075.31,0.00023972,2]
[372507983,1752663217461,-10262.44,0.00023972,2]
[372507984,1752663217470,-9009.22,0.00023972,2]
[372507985,1752663217480,-927.79,0.00023972,2]
[372507986,1752663217490,-460.0,0.00023972,2]
[372507987,1752663217499,-7641.39,0.00023972,2]
[372507988,1752663217508,-1305.47,0.00023972,2]
[372507989,1752663217517,-6402.79,0.00023972,2]
[372507990,1752663217527,-999.84,0.00023972,2]
[372507991,1752663217536,-1048.05,0.00023972,2]
[372507992,1752663217546,-1145.26,0.00023972,2]
[372507993,1752663217556,-1085.51,0.00023972,2]
[372507994,1752663217565,-7522.89,0.00023972,2]
[372507995,1752663217575,-985.55,0.00023972,2]
[372507996,1752663217584,-460.0,0.00023972,2]
[372507997,1752663217593,-7023.53,0.00023972,2]
[372507998,1752663217603,-1618.81,0.00023972,2]
[372507999,1752663217612,-460.0,0.00023972,2]
[372508000,1752663217622,-699.45,0.00023972,2]
[372508001,1752663217633,-4907.65,0.00023972,2]
[372508002,1752663217643,-460.0,0.00023972,2]
[372508003,1752663217652,-460.0,0.00023972,2]
[372508004,1752663217662,-4103.12,0.00023972,2]
[372508005,1752663217671,-587.29,0.00023972,2]
[372508006,1752663217681,-1101.08,0.00023972,2]
[372508007,1752663217691,-2334.85,0.00023972,2]
[372508008,1752663217700,-1300.92,0.00023972,2]
[372508009,1752663217710,-1839.74,0.00023972,2]
[372508010,1752663217719,-7022.82,0.00023972,2]
[372508011,1752663217730,-535.79336733,0.00023972,2]
[372508012,1752663217739,-460.0,0.00023972,2]
[372508013,1752663217749,-805.39,0.00023972,2]
[372508014,1752663217758,-460.0,0.00023972,2]
[372508015,1752663217767,-460.0,0.00023972,2]
[372508016,1752663217776,-574.7,0.00023972,2]
[372508017,1752663217786,-4783.75,0.00023972,2]
[372508018,1752663217795,-11831.05,0.00023972,2]
[372508019,1752663217805,-283.12723768,0.00023972,2]
[372508020,1752663217814,-2063.66,0.00023972,2]
[372508021,1752663217823,-787.25,0.00023972,2]
[372508022,1752663217833,-641.88,0.00023972,2]
[372508023,1752663217842,-12650.62,0.00023972,2]
[372508024,1752663217852,-609.0,0.00023972,2]
[372508025,1752663217862,-5175.99,0.00023972,2]
[372508026,1752663217872,-2321.93,0.00023972,2]
[372508027,1752663217882,-1721.09,0.00023972,2]
[372508028,1752663217892,-1046.05,0.00023972,2]
[372508029,1752663217901,-2399.4,0.00023972,2]
[372508030,1752663217911,-1196.04,0.00023972,2]
[372508031,1752663217920,-460.0,0.00023972,2]
[372508032,1752663217930,-5256.36,0.00023972,2]
[372508033,1752663217939,-1199.05,0.00023972,2]
[372508034,1752663217949,-570.67,0.00023972,2]
[372508035,1752663217959,-1873.93,0.00023972,2]
[372508036,1752663217969,-608.82,0.00023972,2]
[372508037,1752663217980,-6048.28,0.00023972,2]
[372508038,1752663217991,-647.56,0.00023972,2]
[372508039,1752663218000,-460.0,0.00023972,2]
[372508040,1752663218010,-25853.72,0.00023972,2]
[372508041,1752663218020,-3826.55,0.00023972,2]
[372508042,1752663218030,-644.0,0.00023972,2]
[372508043,1752663218039,-4984.48,0.00023972,2]
[372508044,1752663218049,-1010.1,0.00023972,2]
[372508045,1752663218059,-587.74,0.00023972,2]
[372508046,1752663218070,-679.82,0.00023972,2]
[372508047,1752663218080,-1216.26,0.00023972,2]
[372508048,1752663218090,-2657.96,0.00023972,2]
[372508049,1752663218099,-2675.67,0.00023972,2]
[372508050,1752663218109,-2707.25,0.00023972,2]
[372508051,1752663218119,-1531.63,0.00023972,2]
[372508052,1752663218129,-460.0,0.00023972,2]
[372508053,1752663218139,-807.97,0.00023972,2]
[372508054,1752663218149,-460.0,0.00023972,2]
[372508055,1752663218159,-2892.99,0.00023972,2]
[372508056,1752663218169,-10398.73,0.00023972,2]
[372508057,1752663218178,-3663.1,0.00023972,2]
[372508058,1752663218188,-460.0,0.00023972,2]
[372508059,1752663218197,-6155.9,0.00023972,2]
[372508060,1752663218207,-2417.79,0.00023972,2]
[372508061,1752663218217,-1645.27,0.00023972,2]
[372508062,1752663218229,-5760.76,0.00023972,2]
[372508063,1752663218242,-2977.53,0.00023972,2]
[372508064,1752663218251,-1156.71,0.00023972,2]
[372508065,1752663218261,-4994.77,0.00023972,2]
[372508066,1752663218271,-2707.06,0.00023972,2]
[372508067,1752663218282,-828.48,0.00023972,2]
[372508068,1752663218291,-1737.41,0.00023972,2]
[372508069,1752663218301,-1860.1,0.00023972,2]
[372508070,1752663218311,-618.42,0.00023972,2]
[372508071,1752663218321,-697.34,0.00023972,2]
[372508072,1752663218330,-3082.79,0.00023972,2]
[372508073,1752663218340,-763.37,0.00023972,2]
[372508074,1752663218349,-5360.04,0.00023972,2]
[372508075,1752663218359,-1544.88,0.00023972,2]
[372508076,1752663218368,-532.67,0.00023972,2]
[372508077,1752663218378,-566.67,0.00023972,2]
[372508078,1752663218387,-1854.73,0.00023972,2]
[372508079,1752663218397,-6960.91,0.00023972,2]
[372508080,1752663218407,-498.31,0.00023972,2]
[372508081,1752663218419,-1351.27,0.00023972,2]
[372508082,1752663218428,-935.71,0.00023972,2]
[372508083,1752663218438,-1871.79,0.00023972,2]
[372508084,1752663218448,-1354.22,0.00023972,2]
[372508085,1752663218457,-1210.46,0.00023972,2]
[372508086,1752663218467,-647.88,0.00023972,2]
[372508087,1752663218479,-460.0,0.00023972,2]
[372508088,1752663218488,-3727.42,0.00023972,2]
[372508089,1752663218498,-4520.63,0.00023972,2]
[372508090,1752663218507,-544.05,0.00023972,2]
[372508091,1752663218517,-1562.68,0.00023972,2]
[372508092,1752663218527,-1807.76,0.00023972,2]
[372508093,1752663218537,-1674.69,0.00023972,2]
[372508094,1752663218548,-804.49,0.00023972,2]
[372508095,1752663218557,-619.88,0.00023972,2]
[372508096,1752663218566,-2967.28,0.00023972,2]
[372508097,1752663218576,-4930.79,0.00023972,2]
[372508098,1752663218585,-1331.59,0.00023972,2]
[372508099,1752663218595,-460.0,0.00023972,2]
[372508100,1752663218605,-1756.27,0.00023972,2]
[372508101,1752663218615,-1372.2,0.00023972,2]
[372508102,1752663218871,-2884.75,0.00023972,2]
[372508103,1752663218887,-3471.77,0.00023972,2]
[372508104,1752663218898,-4338.23,0.00023972,2]
[372508105,1752663218909,-1048.9,0.00023972,2]
[372508106,1752663218919,-1304.13,0.00023972,2]
[372508107,1752663218928,-2952.62,0.00023972,2]
[372508108,1752663218938,-5916.53,0.00023972,2]
[372508109,1752663218947,-589.94,0.00023972,2]
[372508110,1752663218957,-18520.14,0.00023972,2]
[372508111,1752663218967,-2011.92,0.00023972,2]
[372508112,1752663218978,-861.69,0.00023972,2]
[372508113,1752663218988,-771.65,0.00023972,2]
[372508114,1752663218998,-469.09,0.00023972,2]
[372508115,1752663219008,-1267.95,0.00023972,2]
[372508116,1752663219018,-1896.91,0.00023972,2]
[372508117,1752663219028,-624.77,0.00023972,2]
[372508118,1752663219038,-6378.4,0.00023972,2]
[372508119,1752663219048,-6594.98,0.00023972,2]
[372508120,1752663219057,-4665.3,0.00023972,2]
[372508121,1752663219067,-1113.8,0.00023972,2]
[372508122,1752663219078,-4540.32,0.00023972,2]
[372508123,1752663219088,-9546.24,0.00023972,2]
[372508124,1752663219098,-575.28,0.00023972,2]
[372508125,1752663219108,-1746.59,0.00023972,2]
[372508126,1752663219118,-2605.38,0.00023972,2]
[372508127,1752663219129,-484.92,0.00023972,2]
[372508128,1752663219139,-4658.6,0.00023972,2]
[372508129,1752663219148,-2501.59,0.00023972,2]
[372508130,1752663219158,-570.76,0.00023972,2]
[372508131,1752663219168,-2763.84,0.00023972,2]
[372508132,1752663219178,-7774.07,0.00023972,2]
[372508133,1752663219188,-3322.94,0.00023972,2]
[372508134,1752663219198,-5927.89,0.00023972,2]
[372508135,1752663219208,-460.0,0.00023972,2]
[372508136,1752663219217,-460.0,0.00023972,2]
[372508137,1752663219228,-1367.25,0.00023972,2]
[372508138,1752663219241,-7494.33,0.00023972,2]
[372508139,1752663219251,-16963.12,0.00023972,2]
[372508140,1752663219260,-2065.11,0.00023972,2]
[372508141,1752663219271,-5953.02,0.00023972,2]
[372508142,1752663219282,-3212.42,0.00023972,2]
[372508143,1752663219293,-21344.53,0.00023972,2]
[372508144,1752663219303,-1014.23,0.00023972,2]
[372508145,1752663219315,-5650.16,0.00023972,2]
[372508146,1752663219327,-476.32,0.00023972,2]
[372508147,1752663219338,-2587.67,0.00023972,2]
[372508148,1752663219348,-5415.43,0.00023972,2]
[372508149,1752663219357,-4486.27,0.00023972,2]
[372508150,1752663219367,-1011.46,0.00023972,2]
[372508151,1752663219377,-635.25,0.00023972,2]
[372508152,1752663219387,-1538.9,0.00023972,2]
[372508153,1752663219396,-2685.11,0.00023972,2]
[372508154,1752663219406,-2744.51,0.00023972,2]
[372508155,1752663219416,-1047.77,0.00023972,2]
[372508156,1752663219426,-460.0,0.00023972,2]
[372508157,1752663219437,-802.61,0.00023972,2]
[372508158,1752663219447,-1189.82,0.00023972,2]
[372508159,1752663219457,-460.0,0.00023972,2]
[372508160,1752663219468,-573.37,0.00023972,2]
[372508161,1752663219478,-1356.57,0.00023972,2]
[372508162,1752663219489,-8020.77,0.00023972,2]
[372508163,1752663219498,-5279.75,0.00023972,2]
[372508164,1752663219508,-1204.94,0.00023972,2]
[372508165,1752663219518,-32484.29,0.00023972,2]
[372508166,1752663219529,-3572.47,0.00023972,2]
[372508167,1752663219539,-1007.81,0.00023972,2]
[372508168,1752663219548,-504.66,0.00023972,2]
[372508169,1752663219558,-460.0,0.00023972,2]
[372508170,1752663219568,-676.02,0.00023972,2]
[372508171,1752663219578,-19195.94,0.00023972,2]
[372508172,1752663219588,-684.08,0.00023972,2]
[372508173,1752663219598,-1061.14,0.00023972,2]
[372508174,1752663219608,-3262.8,0.00023972,2]
[372508175,1752663219618,-1225.77,0.00023972,2]
[372508176,1752663219628,-612.3,0.00023972,2]
[372508177,1752663219638,-460.0,0.00023972,2]
[372508178,1752663219648,-1692.42,0.00023972,2]
[372508179,1752663219657,-14730.83,0.00023972,2]
[372508180,1752663219667,-3566.5,0.00023972,2]
[372508181,1752663219677,-628.29,0.00023972,2]
[372508182,1752663219686,-3509.68,0.00023972,2]
[372508183,1752663219696,-22442.02,0.00023972,2]
[372508184,1752663219706,-460.0,0.00023972,2]
[372508185,1752663219716,-460.0,0.00023972,2]
[372508186,1752663219727,-686.39,0.00023972,2]
[372508187,1752663219739,-1807.34,0.00023972,2]
[372508188,1752663219753,-460.0,0.00023972,2]
[372508189,1752663219765,-5682.68,0.00023972,2]
[372508190,1752663219775,-1225.76832928,0.00023972,2]
[372508191,1752663220159,-372.47167072,0.00023972,2]
[372508192,1752663220169,-460.0,0.00023972,2]
[372508193,1752663220180,-4110.38,0.00023972,2]
[372508194,1752663220190,-949.55,0.00023972,2]
[372508195,1752663220200,-1745.31,0.00023972,2]
[372508196,1752663220210,-1841.85,0.00023972,2]
[372508197,1752663220221,-2472.8,0.00023972,2]
[372508198,1752663220234,-4959.45,0.00023972,2]
[372508199,1752663220246,-3547.98,0.00023972,2]
[372508200,1752663220257,-58694.54,0.00023972,2]
[372508201,1752663220268,-5628.71,0.00023972,2]
[372508202,1752663220279,-460.0,0.00023972,2]
[372508203,1752663220288,-603.39,0.00023972,2]
[372508204,1752663220298,-1096.81,0.00023972,2]
[372508205,1752663220311,-2285.96,0.00023972,2]
[372508206,1752663220321,-483.36,0.00023972,2]
[372508207,1752663220332,-1447.83,0.00023972,2]
[372508208,1752663220342,-1319.97,0.00023972,2]
[372508209,1752663220352,-1144.35,0.00023972,2]
[372508210,1752663220362,-5147.01,0.00023972,2]
[372508211,1752663220371,-8010.56,0.00023972,2]
[372508212,1752663220380,-1683.09,0.00023972,2]
[372508213,1752663220390,-2993.43,0.00023972,2]
[372508214,1752663220399,-572.51,0.00023972,2]
[372508215,1752663220409,-639.1,0.00023972,2]
[372508216,1752663220418,-739.23,0.00023972,2]
[372508217,1752663220428,-460.0,0.00023972,2]
[372508218,1752663220437,-6205.36,0.00023972,2]
[372508219,1752663220446,-510.71,0.00023972,2]
[372508220,1752663220455,-2249.11,0.00023972,2]
[372508221,1752663220465,-4164.71,0.00023972,2]
[372508222,1752663220475,-6769.38,0.00023972,2]
[372508223,1752663220486,-2022.49,0.00023972,2]
[372508224,1752663220496,-1115.74,0.00023972,2]
[372508225,1752663220505,-460.0,0.00023972,2]
[372508226,1752663220514,-795.42,0.00023972,2]
[372508227,1752663220524,-2986.83,0.00023972,2]
[372508228,1752663220533,-830.15,0.00023972,2]
[372508229,1752663220542,-619.04,0.00023972,2]
[372508230,1752663220552,-1181.41,0.00023972,2]
[372508231,1752663220561,-1807.42,0.00023972,2]
[372508232,1752663220571,-460.0,0.00023972,2]
[372508233,1752663220580,-3400.85,0.00023972,2]
[372508234,1752663220590,-2724.38,0.00023972,2]